bitfinex-derivatives/quotes_SOLF0:USTF0_20250818
["timestamp","ask_amount","ask_price","bid_price","bid_amount"]
[1755547018555,135.14,183.43,183.36,9.27224697]
[1755547018753,2.98,183.41,183.36,3.82114697]
[1755547018942,2.98,183.39,183.36,3.82114697]
[1755547019555,2.98,183.42,183.36,6.74114697]
[1755547019747,3.87187574,183.41,183.37,2.92]
[1755547019945,3.87187574,183.4,183.37,2.92]
[1755547020148,2.98,183.42,183.36,6.74114697]
[1755547020349,3.87120739,183.41,183.36,3.82114697]
[1755547020549,2.98,183.42,183.38,2.92]
[1755547020754,3.86959378,183.41,183.38,2.92]
[1755547020950,2.98,183.42,183.39,2.92]
[1755547021151,135.14,183.43,183.4,2.92]
[1755547021351,2.98,183.45,183.4,2.92]
[1755547021551,3.86947592,183.44,183.4,2.92]
[1755547021857,2.98,183.45,183.4,2.92]
[1755547022061,3.86922529,183.44,183.41,2.92]
[1755547022258,2.92454826,183.45,183.41,2.92]
[1755547022558,3.86861063,183.44,183.39,3.82114697]
[1755547022757,3.86861063,183.43,183.39,3.82114697]
[1755547023059,50.0,183.46,183.39,3.82114697]
[1755547023259,8.25789956,183.45,183.39,3.82114697]
[1755547023459,3.86825598,183.44,183.39,6.74114697]
[1755547023656,3.86825598,183.43,183.4,2.92]
[1755547023860,50.0,183.46,183.4,2.92]
[1755547024063,3.86756361,183.45,183.4,2.92]
[1755547024364,2.98,183.43,183.39,3.82114697]
[1755547024562,2.98,183.42,183.39,3.82114697]
[1755547025562,2.98,183.42,183.39,6.74114697]
[1755547025763,2.98,183.45,183.39,3.82114697]
[1755547026063,2.98,183.43,183.39,3.82114697]
[1755547026762,2.98,183.42,183.39,3.82114697]
[1755547027759,2.98,183.42,183.39,6.74114697]
[1755547028157,2.98,183.45,183.39,12.19134697]
[1755547028369,3.86846039,183.44,183.4,2.92]
[1755547028555,3.86846039,183.43,183.4,2.92]
[1755547028956,3.86846039,183.43,183.39,3.82114697]
[1755547029151,2.98,183.42,183.39,3.82114697]
[1755547029357,2.98,183.45,183.39,6.74114697]
[1755547029563,6.84849182,183.44,183.39,3.82114697]
[1755547029766,3.86849182,183.43,183.4,2.92]
[1755547030067,2.98,183.44,183.4,2.92]
[1755547030362,3.86858148,183.43,183.41,2.92]
[1755547030665,50.0,183.46,183.41,2.92]
[1755547030867,3.86924434,183.45,183.41,2.92]
[1755547031156,3.86924434,183.45,183.39,3.82114697]
[1755547031157,2.98,183.42,183.39,3.82114697]
[1755547033370,2.98,183.42,183.38,12.19174697]
[1755547034260,2.98,183.42,183.38,6.74114697]
[1755547034460,135.14,183.48,183.38,6.74114697]
[1755547034669,2.98,183.46,183.38,3.82114697]
[1755547034865,2.98,183.44,183.35,3.82114697]
[1755547035170,2.98,183.42,183.34,2.92]
[1755547035368,8.2545165,183.43,183.34,2.92]
[1755547035369,3.86862547,183.41,183.34,2.92]
[1755547035569,6.84862547,183.4,183.34,2.92]
[1755547035772,2.98,183.4,183.34,2.92]
[1755547035972,2.98,183.4,183.33,2.92]
[1755547036466,3.8664909,183.39,183.33,2.92]
[1755547036772,2.98,183.39,183.36,2.92]
[1755547037869,50.0,183.44,183.34,5.4517]
[1755547038072,50.0,183.44,183.34,8.3717]
[1755547038073,2.98,183.38,183.34,8.3717]
[1755547038271,2.98,183.38,183.35,2.92]
[1755547038572,2.98,183.43,183.35,2.92]
[1755547038771,3.86652169,183.42,183.35,2.92]
[1755547039070,6.84652169,183.41,183.35,8.3714]
[1755547039266,6.84652169,183.4,183.35,8.3714]
[1755547039474,2.98,183.4,183.36,2.92]
[1755547040163,50.0,183.44,183.35,3.82114697]
[1755547040364,3.87751974,183.43,183.36,2.92]
[1755547040664,3.87751974,183.42,183.36,2.92]
[1755547040867,52.98,183.44,183.38,5.4505]
[1755547041065,3.8772353,183.43,183.38,5.4505]
[1755547041270,3.8772353,183.42,183.38,5.4505]
[1755547041568,2.98,183.43,183.39,2.92]
[1755547041764,3.87744016,183.42,183.39,2.92]
[1755547041964,2.98,183.43,183.39,2.92]
[1755547042168,3.87726033,183.42,183.39,2.92]
[1755547042374,2.98,183.43,183.39,5.4503]
[1755547042669,2.91,183.46,183.42,3.04]
[1755547042871,3.87797328,183.45,183.42,3.04]
[1755547043168,3.87797328,183.44,183.42,3.04]
[1755547043371,135.14,183.48,183.41,3.82114697]
[1755547043571,6.7881528,183.47,183.41,3.82114697]
[1755547043772,6.7881528,183.46,183.42,3.04]
[1755547043971,6.7881528,183.45,183.42,3.04]
[1755547044173,3.8781528,183.44,183.42,3.04]
[1755547044472,2.91,183.45,183.41,6.86114697]
[1755547044673,3.87790914,183.44,183.42,3.04]
[1755547044879,135.14,183.48,183.42,3.04]
[1755547045171,2.91,183.46,183.42,3.04]
[1755547045369,3.87790914,183.45,183.42,3.04]
[1755547045571,3.87790914,183.44,183.42,3.04]
[1755547045773,135.14,183.48,183.42,3.04]
[1755547045964,3.87781315,183.47,183.42,5.4493]
[1755547046165,135.14,183.48,183.44,6.86114697]
[1755547046372,135.14,183.48,183.45,3.04]
[1755547046664,6.78653714,183.47,183.44,3.82114697]
[1755547046861,2.91,183.46,183.44,3.82114697]
[1755547047372,135.14,183.48,183.44,3.82114697]
[1755547047575,2.91,183.45,183.41,6.86114697]
[1755547050470,2.91,183.44,183.41,6.86114697]
[1755547051574,138.05,183.48,183.41,3.82114697]
[1755547051774,3.87094406,183.47,183.41,3.82114697]
[1755547051976,6.78094406,183.46,183.42,3.04]
[1755547052173,2.91,183.46,183.42,3.04]
[1755547052571,135.14,183.48,183.45,3.04]
[1755547052774,3.87168068,183.47,183.45,3.04]
[1755547052973,138.05,183.48,183.45,3.04]
[1755547053479,3.87127188,183.47,183.45,3.04]
[1755547053673,138.05,183.48,183.45,3.04]
[1755547053875,3.87127333,183.47,183.45,3.04]
[1755547054078,138.05,183.48,183.45,3.04]
[1755547054381,3.87148927,183.47,183.44,3.82114697]
[1755547054580,2.91,183.47,183.44,3.82114697]
[1755547055282,2.91,183.46,183.44,3.82114697]
[1755547055678,135.14,183.48,183.41,3.82114697]
[1755547055882,6.78122576,183.47,183.41,6.86114697]
[1755547056183,2.91,183.46,183.42,3.04]
[1755547056576,2.91,183.46,183.43,3.04]
[1755547056977,2.91,183.47,183.41,3.82114697]
[1755547057282,2.91,183.45,183.41,6.86114697]
[1755547057884,2.91,183.47,183.41,6.86114697]
[1755547058080,2.91,183.45,183.38,6.86114697]
[1755547058783,2.91,183.45,183.38,3.04]
[1755547058981,2.91,183.45,183.38,6.86114697]
[1755547059180,2.91,183.45,183.38,3.82114697]
[1755547059382,3.873818,183.44,183.38,3.82114697]
[1755547059584,2.91,183.45,183.38,3.82114697]
[1755547059886,2.91,183.4,183.38,3.82114697]
[1755547060085,137.87,183.43,183.37,3.04]
[1755547060283,3.87532195,183.42,183.37,3.04]
[1755547060486,2.91,183.41,183.35,3.82114697]
[1755547061891,134.96,183.43,183.38,3.82114697]
[1755547062088,3.87560798,183.42,183.39,3.04]
[1755547062284,137.87,183.43,183.39,3.04]
[1755547062489,2.91,183.41,183.38,3.82114697]
[1755547062877,2.91,183.42,183.35,3.82114697]
[1755547063083,3.87569665,183.41,183.35,3.82114697]
[1755547063386,2.91,183.42,183.35,3.82114697]
[1755547063387,2.91,183.42,183.35,6.86114697]
[1755547063587,2.91,183.42,183.37,3.04]
[1755547063787,2.91,183.42,183.38,3.04]
[1755547065391,2.91,183.42,183.36,5.4511]
[1755547065688,2.91,183.42,183.38,3.04]
[1755547065886,2.91,183.42,183.39,3.04]
[1755547067585,134.96,183.43,183.4,3.04]
[1755547067782,134.96,183.43,183.41,3.04]
[1755547067979,137.87,183.43,183.39,3.04]
[1755547068179,134.96,183.43,183.4,3.04]
[1755547070395,137.87,183.43,183.4,3.04]
[1755547070689,134.96,183.43,183.38,9.27164697]
[1755547071089,134.96,183.43,183.39,3.04]
[1755547071285,134.96,183.43,183.4,3.04]
[1755547071792,134.96,183.43,183.41,3.04]
[1755547072393,187.83,183.46,183.41,3.04]
[1755547072687,3.87593405,183.45,183.44,3.11]
[1755547073091,2.95,183.48,183.44,3.11]
[1755547073396,6.82652218,183.47,183.44,3.11]
[1755547073687,2.95,183.47,183.44,3.11]
[1755547075491,2.95,183.47,183.42,9.27044697]
[1755547075791,2.95,183.47,183.43,3.11]
[1755547075993,2.95,183.46,183.43,3.11]
[1755547077495,296.48699623,183.49,183.42,12.38044697]
[1755547077691,3.87644025,183.48,183.42,9.27044697]
[1755547077892,296.48699623,183.49,183.45,6.93114697]
[1755547078195,246.48699623,183.49,183.46,3.11]
[1755547078395,243.53699623,183.49,183.47,3.11]
[1755547079496,243.53699623,183.49,183.45,3.82114697]
[1755547079701,2.95,183.47,183.43,3.11]
[1755547079994,246.48699623,183.49,183.43,3.11]
[1755547080200,3.87540181,183.48,183.42,3.82114697]
[1755547080403,2.95,183.47,183.44,3.11]
[1755547081299,2.95,183.45,183.42,6.93114697]
[1755547081704,2.95,183.48,183.42,3.82114697]
[1755547081903,2.95,183.46,183.42,3.82114697]
[1755547082097,2.95,183.48,183.42,3.82114697]
[1755547082297,2.95,183.45,183.42,3.82114697]
[1755547082696,246.48699623,183.49,183.42,6.93114697]
[1755547082899,3.87438531,183.48,183.42,6.93114697]
[1755547083095,6.82438531,183.47,183.43,3.11]
[1755547083300,6.82438531,183.46,183.43,3.11]
[1755547083600,2.95,183.46,183.43,3.11]
[1755547084699,2.95,183.48,183.42,3.82114697]
[1755547084901,3.87661591,183.47,183.42,3.82114697]
[1755547085099,2.95,183.45,183.42,3.82114697]
[1755547085297,2.95,183.45,183.42,6.93114697]
[1755547086302,246.48699623,183.49,183.43,3.11]
[1755547086499,3.87931199,183.48,183.43,3.11]
[1755547086696,3.87931199,183.47,183.42,3.82114697]
[1755547086903,3.87931199,183.46,183.43,3.11]
[1755547087207,2.95,183.47,183.43,3.11]
[1755547087404,2.95,183.45,183.42,3.82114697]
[1755547087996,2.95,183.44,183.42,3.82114697]
[1755547088495,2.95,183.42,183.33,3.82114697]
[1755547088700,138.71894611,183.41,183.33,3.82114697]
[1755547088907,6.82894611,183.4,183.33,3.82114697]
[1755547089105,3.87894611,183.39,183.33,3.82114697]
[1755547089306,6.82894611,183.38,183.3,6.93114697]
[1755547089510,2.95,183.38,183.3,6.93114697]
[1755547089709,137.77,183.38,183.3,6.93114697]
[1755547090408,137.77,183.38,183.31,5.4526]
[1755547090710,134.82,183.38,183.31,3.11]
[1755547090904,134.82,183.38,183.32,5.4521]
[1755547092103,2.95,183.39,183.34,5.4516]
[1755547092312,137.79,183.42,183.36,3.11]
[1755547093007,137.79,183.42,183.33,3.82114697]
[1755547093213,137.79,183.42,183.33,6.93114697]
[1755547093913,3.87248053,183.41,183.33,6.93114697]
[1755547094214,137.79,183.42,183.33,6.93114697]
[1755547094515,3.87216498,183.41,183.33,6.93114697]
[1755547094717,137.79,183.42,183.33,6.93114697]
[1755547094920,3.87216498,183.41,183.34,5.4515]
[1755547095124,137.79,183.42,183.34,5.4515]
[1755547095315,3.87202604,183.41,183.34,5.4515]
[1755547095510,137.79,183.42,183.34,5.4515]
[1755547095715,3.87187506,183.41,183.34,5.4515]
[1755547096021,137.79,183.42,183.34,5.4515]
[1755547096323,3.87225241,183.41,183.34,5.4515]
[1755547096523,137.79,183.42,183.34,5.4515]
[1755547096722,3.87160841,183.41,183.34,5.4515]
[1755547096924,137.79,183.42,183.34,5.4515]
[1755547097226,3.87161275,183.41,183.33,12.38304697]
[1755547097525,137.79,183.42,183.33,12.38304697]
[1755547097828,3.87072508,183.41,183.34,5.4517]
[1755547098018,137.79,183.42,183.34,5.4517]
[1755547098219,3.87073566,183.41,183.34,3.11]
[1755547098420,137.79,183.42,183.34,3.11]
[1755547098720,3.87076466,183.41,183.34,3.11]
[1755547098924,137.79,183.42,183.34,3.11]
[1755547099124,3.87076084,183.41,183.34,3.11]
[1755547099316,137.79,183.42,183.35,5.4514]
[1755547099520,3.9146439,183.41,183.35,5.4514]
[1755547099821,137.79,183.42,183.35,5.4514]
[1755547100021,3.91525058,183.41,183.35,5.4514]
[1755547100223,137.79,183.42,183.35,5.4514]
[1755547100425,3.91572122,183.41,183.35,5.4514]
[1755547100624,137.79,183.42,183.35,5.4514]
[1755547100922,3.91572415,183.41,183.35,5.4514]
[1755547101113,137.79,183.42,183.35,5.4514]
[1755547101312,3.91619042,183.41,183.35,5.4514]
[1755547101526,137.79,183.42,183.35,5.4514]
[1755547101728,3.91615661,183.41,183.35,5.4514]
[1755547101922,137.79,183.42,183.35,5.4514]
[1755547102223,3.91615661,183.41,183.35,5.4514]
[1755547102522,137.79,183.42,183.35,5.4514]
[1755547102723,3.91605265,183.41,183.35,5.4514]
[1755547102924,137.79,183.42,183.35,5.4514]
[1755547103132,3.91605265,183.41,183.35,5.4514]
[1755547103319,137.79,183.42,183.35,5.4514]
[1755547103617,3.91592867,183.41,183.35,5.4514]
[1755547103817,137.79,183.42,183.35,5.4514]
[1755547104024,3.91593014,183.41,183.35,5.4514]
[1755547104218,137.79,183.42,183.35,5.4514]
[1755547104422,3.915796,183.41,183.35,5.4514]
[1755547104722,137.79,183.42,183.35,5.4514]
[1755547105021,3.915796,183.41,183.35,5.4514]
[1755547105225,137.79,183.42,183.35,5.4514]
[1755547105527,7.06565481,183.41,183.34,8.5617]
[1755547105726,3.15,183.41,183.34,8.5617]
[1755547106021,3.15,183.41,183.28,74.52527427]
[1755547106022,3.15,183.39,183.31,3.1]
[1755547106226,3.15,183.37,183.3,3.82114697]
[1755547106417,3.15,183.37,183.3,6.92114697]
[1755547107430,3.15,183.37,183.3,12.37384697]
[1755547108626,3.15,183.37,183.31,5.4526]
[1755547108827,3.15,183.37,183.3,6.92114697]
[1755547109329,3.15,183.37,183.3,12.37384697]
[1755547109628,3.15,183.37,183.28,74.52527427]
[1755547109926,3.15,183.35,183.28,79.97857427]
[1755547110114,50.0,183.35,183.28,74.52527427]
[1755547110428,20.18114697,183.39,183.24,9.27574697]
[1755547110429,3.15,183.34,183.24,9.27574697]
[1755547110627,3.15,183.34,183.24,3.82114697]
[1755547111419,3.15,183.34,183.23,3.1]
[1755547111620,3.15,183.34,183.23,6.92114697]
[1755547112228,3.15,183.34,183.25,5.4543]
[1755547112628,3.15,183.34,183.26,5.4541]
[1755547112827,3.15,183.34,183.26,3.82114697]
[1755547113226,3.15,183.34,183.27,5.4536]
[1755547114446,3.15,183.34,183.26,9.27514697]
[1755547114629,3.15,183.34,183.26,3.82114697]
[1755547119432,3.15,183.34,183.26,9.27524697]
[1755547121028,3.15,183.34,183.25,3.1]
[1755547121224,3.15,183.32,183.22,3.82114697]
[1755547122025,3.15,183.32,183.22,9.27644697]
[1755547122225,3.15,183.32,183.22,3.82114697]
[1755547123030,3.15,183.32,183.22,9.27624697]
[1755547124034,3.15,183.32,183.21,3.1]
[1755547124225,3.15,183.29,183.21,3.1]
[1755547124530,3.15,183.29,183.18,6.92114697]
[1755547124925,3.15,183.29,183.19,5.456]
[1755547125934,3.15,183.29,183.2,8.5559]
[1755547126231,3.15,183.29,183.2,3.1]
[1755547127226,3.89969253,183.28,183.19,5.456]
[1755547127426,3.15,183.29,183.18,5.4564]
[1755547127626,3.15,183.27,183.18,5.4564]
[1755547127925,3.15,183.27,183.17,12.37794697]
[1755547128126,3.15,183.25,183.17,6.92114697]
[1755547128930,50.0,183.26,183.18,3.12]
[1755547129237,50.0,183.26,183.22,5.4553]
[1755547129624,50.0,183.26,183.24,3.12]
[1755547129830,50.0,183.26,183.22,5.4553]
[1755547130135,50.0,183.26,183.25,3.12]
[1755547131336,3.15,183.31,183.25,3.12]
[1755547132539,3.15,183.31,183.25,6.94114697]
[1755547135344,3.15,183.31,183.22,6.94114697]
[1755547135542,20.18114697,183.34,183.22,6.94114697]
[1755547135835,2.97,183.29,183.22,6.94114697]
[1755547136028,2.97,183.29,183.23,3.12]
[1755547136339,20.18114697,183.34,183.23,8.5747]
[1755547136539,2.97,183.32,183.23,8.5747]
[1755547136837,3.90638698,183.31,183.23,8.5747]
[1755547137038,2.97,183.32,183.23,8.5747]
[1755547137239,3.90638698,183.31,183.23,8.5747]
[1755547137434,2.97,183.32,183.23,8.5747]
[1755547137636,3.90665373,183.31,183.23,8.5747]
[1755547137835,2.97,183.32,183.24,5.4547]
[1755547138132,2.97,183.32,183.25,6.94114697]
[1755547138338,2.97,183.32,183.25,12.39544697]
[1755547139338,2.97,183.32,183.25,6.94114697]
[1755547140142,3.90643818,183.31,183.23,5.455]
[1755547140337,3.90643818,183.31,183.11,9.02842185]
[1755547140338,2.97,183.29,183.18,3.82114697]
[1755547140640,2.97,183.27,183.18,6.94114697]
[1755547140841,6.79114697,183.25,183.15,6.94114697]
[1755547141038,2.97,183.23,183.15,3.12]
[1755547141746,2.97,183.23,183.16,5.457]
[1755547142043,2.97,183.26,183.16,3.12]
[1755547142343,2.97,183.24,183.16,3.12]
[1755547143245,50.0,183.27,183.19,3.12]
[1755547143442,137.75,183.28,183.21,3.82114697]
[1755547143946,137.75,183.28,183.21,6.94114697]
[1755547145244,134.78,183.28,183.21,3.82114697]
[1755547145446,134.78,183.28,183.22,3.12]
[1755547146343,2.97,183.31,183.22,8.5753]
[1755547146644,137.77,183.32,183.28,3.12]
[1755547147746,137.77,183.32,183.29,3.12]
[1755547148339,9.82721672,183.4,183.28,3.12]
[1755547148340,2.97,183.36,183.28,3.12]
[1755547148552,3.9103088,183.35,183.28,3.12]
[1755547148748,3.9103088,183.35,183.27,3.82114697]
[1755547148749,2.97,183.36,183.3,6.94114697]
[1755547150052,2.97,183.36,183.3,12.39384697]
[1755547150345,2.97,183.4,183.34,3.12]
[1755547150550,2.97,183.38,183.34,3.12]
[1755547151649,2.97,183.42,183.34,3.12]
[1755547151850,3.91291417,183.41,183.34,3.12]
[1755547152050,3.91291417,183.4,183.34,3.12]
[1755547152251,3.91291417,183.39,183.35,3.12]
[1755547152550,2.97,183.42,183.34,3.12]
[1755547152740,3.91320758,183.41,183.34,3.12]
[1755547152947,3.91320758,183.4,183.34,3.12]
[1755547153149,3.91320758,183.39,183.33,3.82114697]
[1755547153355,2.97,183.4,183.33,3.82114697]
[1755547153554,3.91255091,183.39,183.31,6.94114697]
[1755547153753,6.88252839,183.38,183.31,6.94114697]
[1755547154055,2.97,183.38,183.31,3.82114697]
[1755547154349,2.97,183.35,183.28,6.94114697]
[1755547155051,2.97,183.39,183.28,6.94114697]
[1755547155253,3.91302615,183.38,183.32,3.12]
[1755547155452,2.97,183.39,183.34,3.82114697]
[1755547155753,3.91313217,183.38,183.34,6.94114697]
[1755547155946,2.97,183.39,183.34,6.94114697]
[1755547156146,3.91331335,183.38,183.34,6.94114697]
[1755547156347,2.97,183.39,183.34,6.94114697]
[1755547156644,2.97,183.39,183.34,3.82114697]
[1755547156945,2.97,183.42,183.34,6.94114697]
[1755547157255,3.91335395,183.41,183.34,6.94114697]
[1755547157455,3.91335395,183.4,183.34,6.94114697]
[1755547157754,2.97,183.42,183.34,6.94114697]
[1755547158052,3.91281889,183.41,183.34,6.94114697]
[1755547158253,3.91281889,183.4,183.34,6.94114697]
[1755547158447,2.97,183.42,183.34,6.94114697]
[1755547158648,3.91294304,183.41,183.34,6.94114697]
[1755547158848,2.97,183.42,183.34,6.94114697]
[1755547159048,3.91294596,183.41,183.34,12.39274697]
[1755547159246,2.97,183.42,183.34,12.39274697]
[1755547159452,3.9102234,183.41,183.34,6.94114697]
[1755547159646,2.97,183.42,183.34,6.94114697]
[1755547159846,3.9102234,183.41,183.34,6.94114697]
[1755547160054,2.97,183.42,183.34,6.94114697]
[1755547160254,2.97,183.42,183.34,12.39284697]
[1755547160861,2.97,183.42,183.34,8.5717]
[1755547161161,2.97,183.42,183.34,12.39284697]
[1755547161162,3.90896542,183.41,183.34,12.39284697]
[1755547161359,2.97,183.42,183.34,12.39284697]
[1755547161559,2.97,183.42,183.34,6.94114697]
[1755547163552,2.97,183.42,183.34,12.39284697]
[1755547165755,2.97,183.42,183.36,2.9]
[1755547167164,2.97,183.42,183.34,3.82114697]
[1755547168163,2.98,183.4,183.34,3.82114697]
[1755547168359,134.76,183.43,183.35,2.9]
[1755547168758,134.76,183.43,183.35,8.3513]
[1755547170357,2.98,183.44,183.38,2.9]
[1755547170564,50.0,183.46,183.38,2.9]
[1755547170963,50.0,183.46,183.38,8.3503]
[1755547171562,2.98,183.45,183.37,3.82114697]
[1755547171766,2.98,183.45,183.38,2.9]
[1755547171964,2.98,183.45,183.37,3.82114697]
[1755547172368,2.98,183.44,183.35,2.9]
[1755547172562,2.98,183.44,183.35,8.3512]
[1755547172763,2.98,183.44,183.35,2.9]
[1755547173561,2.98,183.44,183.35,8.3512]
[1755547173972,2.98,183.44,183.35,2.9]
[1755547174271,2.98,183.44,183.36,5.4509]
[1755547174868,2.98,183.44,183.35,2.9]
[1755547175272,3.82114697,183.42,183.31,6.72114697]
[1755547175466,2.98,183.4,183.31,6.72114697]
[1755547175667,3.82114697,183.39,183.28,3.82114697]
[1755547175872,2.98,183.37,183.28,6.72114697]
[1755547176168,2.98,183.37,183.28,12.17444697]
[1755547177164,2.98,183.37,183.29,5.4532]
[1755547178372,2.98,183.37,183.28,12.17464697]
[1755547178565,2.98,183.37,183.29,2.9]
[1755547179265,2.98,183.37,183.3,5.4528]
[1755547181680,2.98,183.37,183.29,8.3532]
[1755547183173,134.64,183.36,183.29,8.3532]
[1755547183374,2.98,183.37,183.29,8.3532]
[1755547183682,2.98,183.35,183.26,2.9]
[1755547184377,2.98,183.33,183.26,2.9]
[1755547184573,2.98,183.33,183.23,8.3549]
[1755547185178,2.98,183.33,183.24,5.4547]
[1755547185582,2.98,183.33,183.23,2.9]
[1755547185981,2.98,183.33,183.23,8.3548]
[1755547186485,2.98,183.33,183.24,5.4546]
[1755547186883,16.36,183.33,183.23,2.9]
[1755547187179,2.98,183.31,183.2,2.9]
[1755547187377,2.98,183.29,183.2,2.9]
[1755547187574,2.98,183.27,183.2,2.9]
[1755547187777,134.70059414,183.26,183.2,2.9]
[1755547188174,2.98,183.25,183.22,0.03766874]
[1755547188388,0.04059414,183.26,183.23,2.9]
[1755547188575,0.04059414,183.26,183.24,2.9]
[1755547188775,0.04059414,183.26,183.22,5.49276874]
[1755547188978,0.04059414,183.26,183.22,2.93766874]
[1755547189176,0.04059414,183.26,183.22,8.39296874]
[1755547189391,0.04059414,183.26,183.23,2.9]
[1755547189581,0.04059414,183.26,183.22,0.03766874]
[1755547189782,3.02059414,183.26,183.22,0.03766874]
[1755547190486,0.04059414,183.26,183.23,2.9]
[1755547190881,2.98,183.25,183.22,0.03766874]
[1755547191389,0.04059414,183.26,183.22,0.03766874]
[1755547191584,2.98,183.24,183.22,0.03766874]
[1755547192173,0.04059414,183.26,183.22,0.03766874]
[1755547192581,6.87114697,183.24,183.14,3.82114697]
[1755547192882,3.05,183.23,183.14,3.82114697]
[1755547193476,3.05,183.21,183.14,3.82114697]
[1755547193882,0.03896912,183.19,183.14,3.82114697]
[1755547194186,3.08896912,183.19,183.14,6.87114697]
[1755547194688,0.03896912,183.19,183.15,3.05]
[1755547194989,0.03896912,183.19,183.16,3.05]
[1755547195181,0.03896912,183.19,183.17,3.05]
[1755547195384,0.03896912,183.19,183.18,3.05]
[1755547195989,0.03896912,183.19,183.18,8.5065]
[1755547196879,0.03896912,183.19,183.18,3.05]
[1755547197289,50.0,183.27,183.18,3.05]
[1755547197492,134.7,183.29,183.21,6.87114697]
[1755547197689,3.05,183.28,183.21,6.87114697]
[1755547198193,3.05,183.28,183.21,3.82114697]
[1755547199489,3.05,183.28,183.18,3.82114697]
[1755547199884,16.36,183.28,183.17,3.05]
[1755547200090,3.05,183.26,183.17,3.05]
[1755547200290,3.05,183.24,183.15,3.82114697]
[1755547200597,19.41,183.24,183.15,3.82114697]
[1755547200793,3.05,183.24,183.16,3.05]
[1755547201094,50.0,183.25,183.21,6.87114697]
[1755547201289,3.05,183.24,183.15,3.82114697]
[1755547201489,3.05,183.24,183.17,5.4567]
[1755547201792,3.05,183.24,183.17,8.5067]
[1755547202186,3.05,183.24,183.18,3.82114697]
[1755547202390,0.03648926,183.22,183.18,3.82114697]
[1755547202694,0.03648926,183.22,183.19,8.506]
[1755547202990,0.03648926,183.22,183.18,3.82114697]
[1755547203293,0.03648926,183.22,183.18,6.87114697]
[1755547203482,0.03648926,183.22,183.21,3.82114697]
[1755547203687,3.05,183.3,183.25,5.4542]
[1755547203892,3.05,183.3,183.26,3.05]
[1755547204398,3.05,183.31,183.22,5.4552]
[1755547204596,16.36,183.29,183.2,3.05]
[1755547204789,3.05,183.28,183.2,3.05]
[1755547205097,3.05,183.26,183.25,0.03999084]
[1755547205289,3.05,183.26,183.17,3.05]
[1755547205491,3.05,183.26,183.2,5.4557]
[1755547205691,3.05,183.26,183.18,3.82114697]
[1755547206395,19.41,183.26,183.17,3.05]
[1755547206695,19.41,183.26,183.15,3.82114697]
[1755547206696,19.41,183.24,183.16,5.4571]
[1755547206889,3.05,183.22,183.13,3.05]
[1755547207202,3.05,183.2,183.09,6.87114697]
[1755547207499,3.82114697,183.26,183.06,3.82114697]
[1755547207500,20.18114697,183.18,183.06,3.82114697]
[1755547207699,16.36,183.17,183.05,3.05]
[1755547207993,3.05,183.16,183.05,3.05]
[1755547208299,16.36,183.14,183.05,3.05]
[1755547208492,3.05,183.13,183.05,3.05]
[1755547208687,3.05,183.13,183.05,8.5102]
[1755547209588,3.05,183.13,183.05,3.05]
[1755547209801,3.05,183.12,183.01,3.05]
[1755547210191,16.36,183.12,183.01,3.05]